[Event "AUT-ch U16 Boys 2022"]
[Site "Sankt Veit an der Glan"]
[Date "2022.04.12"]
[Round "4.6"]
[White "Kienboeck, Benjamin"]
[Black "Hersel, Richard"]
[Result "1-0"]
[ECO "C42"]
[WhiteElo "1900"]
[BlackElo "1832"]
[Annotator "RC"]
[PlyCount "55"]
[EventDate "2022.04.11"]
[EventType "swiss"]
[EventCountry "AUT"]
[SourceTitle "playchess.com"]
[Source "ChessBase"]
[SourceQuality "1"]
[TimeControl "5400+30"]

1. e4 {[%emt 0:00:04]} e5 {[%emt 0:00:02]} 2. Nf3 {[%emt 0:00:11]} Nf6 {[%emt 0:00:02]} 3. Nxe5 {[%emt 0:00:23]} d6 {[%emt 0:00:02]} 4. Nf3 {[%emt 0:00:32]} Nxe4 {[%emt 0:00:04]} 5. Nc3 {[%emt 0:00:30]} Nxc3 {[%emt 0:00:04]} 6. dxc3 {[%emt 0:00:02]} Be7 {[%emt 0:00:10]} 7. Be3 {[%emt 0:01:50]} Nc6 {[%emt 0:00:11]} 8. Qd2 {[%emt 0:02:09]} Be6 {[%emt 0:00:10]} 9. Ng5 {[%emt 0:08:06]} Bf5 {[%emt 0:05:14]} 10. O-O-O {[%emt 0:12:02]} O-O {[%emt 0:16:31]} 11. f4 {[%emt 0:04:23]} Bxg5 {[%emt 0:11:07]} 12. fxg5 {[%emt 0:00:09]} Ne5 {[%emt 0:00:58]} 13. h3 {[%emt 0:03:11]} Be4 {[%emt 0:06:43]} 14. Bd3 {[%emt 0:07:56]} Nxd3+ {[%emt 0:02:44]} 15. cxd3 {[%emt 0:00:06]} Bd5 {[%emt 0:00:38]} 16. Kb1 {[%emt 0:01:18]} c5 {[%emt 0:01:42]} 17. c4 {[%emt 0:01:36]} Be6 {[%emt 0:02:49]} 18. h4 {[%emt 0:00:53]} Bg4 {[%emt 0:14:22]} 19. Rdf1 {[%emt 0:09:26]} f6 {[%emt 0:06:43]} 20. h5 {[%emt 0:12:26]} fxg5 {[%emt 0:04:19]} 21. Bxg5 {[%emt 0:00:19]} Rxf1+ {[%emt 0:01:05]} 22. Rxf1 {[%emt 0:00:01]} Qd7 {[%emt 0:05:29]} 23. h6 {[%emt 0:02:39]} Rf8 {[%emt 0:10:01]} 24. Rxf8+ {[%emt 0:00:47]} Kxf8 {[%emt 0:00:01]} 25. Qf4+ {[%emt 0:00:17]} Kg8 {[%emt 0:01:08]} 26. hxg7 {[%emt 0:04:35]} Kxg7 {[%emt 0:00:14]} 27. Qf6+ {[%emt 0:00:20]} Kg8 {[%emt 0:00:02]} 28. Bh6 {[%emt 0:00:11]} 1-0

[Event "AUT-ch U16 Boys 2022"]
[Site "Sankt Veit an der Glan"]
[Date "2022.04.12"]
[Round "4.7"]
[White "Gloessl, Sota Alexander"]
[Black "Miazhynski, Michael"]
[Result "1-0"]
[ECO "A43"]
[WhiteElo "1887"]
[BlackElo "2047"]
[Annotator "RC"]
[PlyCount "59"]
[EventDate "2022.04.11"]
[EventType "swiss"]
[EventCountry "AUT"]
[SourceTitle "playchess.com"]
[Source "ChessBase"]
[SourceQuality "1"]
[TimeControl "5400+30"]

1. d4 {[%emt 0:00:05]} c5 {[%emt 0:00:11]} 2. d5 {[%emt 0:00:08]} Nf6 {[%emt 0:01:04]} 3. c4 {[%emt 0:00:07]} g6 {[%emt 0:00:57]} 4. Nc3 {[%emt 0:00:10]} Bg7 {[%emt 0:00:10]} 5. g3 {[%emt 0:00:13]} O-O {[%emt 0:00:11]} 6. Bg2 {[%emt 0:00:04]} d6 {[%emt 0:00:16]} 7. e4 {[%emt 0:03:39]} e6 {[%emt 0:08:05]} 8. Nge2 {[%emt 0:04:17]} Re8 {[%emt 0:05:45]} 9. h3 {[%emt 0:01:42]} exd5 {[%emt 0:03:18]} 10. cxd5 {[%emt 0:00:11]} b5 {[%emt 0:02:27]} 11. Nxb5 {[%emt 0:03:30]} Nxe4 {[%emt 0:06:29]} 12. O-O {[%emt 0:00:38]} Qb6 {[%emt 0:07:42]} 13. Nbc3 {[%emt 0:02:12]} Nxc3 {[%emt 0:00:19]} 14. Nxc3 {[%emt 0:00:23]} Ba6 {[%emt 0:00:10]} 15. Re1 {[%emt 0:00:27]} Nd7 {[%emt 0:00:08]} 16. Bd2 {[%emt 0:04:03]} Ne5 {[%emt 0:02:52]} 17. Qa4 {[%emt 0:04:48]} Kf8 {[%emt 0:01:29]} 18. b3 {[%emt 0:03:43]} Nd3 {[%emt 0:21:57]} 19. Rxe8+ {[%emt 0:04:20]} Rxe8 {[%emt 0:00:01]} 20. Qh4 {[%emt 0:00:42]} c4 {[%emt 0:04:44]} 21. Rf1 {[%emt 0:00:30]} cxb3 {[%emt 0:00:29]} 22. Qxh7 {[%emt 0:01:16]} bxa2 {[%emt 0:03:46]} 23. Bh6 {[%emt 0:05:36]} Qxf2+ {[%emt 0:04:08]} 24. Kh2 {[%emt 0:00:01]} Qxf1 {[%emt 0:10:38]} 25. Qxg7+ {[%emt 0:01:06]} Ke7 {[%emt 0:00:07]} 26. Bxf1 {[%emt 0:00:39]} a1=Q {[%emt 0:00:53]} 27. Bg5+ {[%emt 0:00:13]} Kd7 {[%emt 0:00:12]} 28. Qxf7+ {[%emt 0:00:09]} Kc8 {[%emt 0:00:15]} 29. Qxe8+ {[%emt 0:00:14]} Kb7 {[%emt 0:00:18]} 30. Qc6+ {[%emt 0:00:18]} 1-0

[Event "AUT-ch U16 Boys 2022"]
[Site "Sankt Veit an der Glan"]
[Date "2022.04.12"]
[Round "4.10"]
[White "Weixler, Moritz"]
[Black "Giselbrecht, Jerrik"]
[Result "1/2-1/2"]
[ECO "B22"]
[WhiteElo "1190"]
[BlackElo "1707"]
[Annotator "NA RC"]
[PlyCount "66"]
[EventDate "2022.04.11"]
[EventType "swiss"]
[EventCountry "AUT"]
[SourceTitle "playchess.com"]
[Source "ChessBase"]
[SourceQuality "1"]
[TimeControl "5400+30"]

1. e4 {[%emt 0:00:03]} c5 {[%emt 0:00:26]} 2. c3 {[%emt 0:00:19]} Nc6 {[%emt 0:06:14]} 3. d4 {[%emt 0:01:09]} cxd4 {[%emt 0:01:06]} 4. cxd4 {[%emt 0:00:06]} d6 {[%emt 0:04:28]} 5. Nf3 {[%emt 0:00:58]} e6 {[%emt 0:10:24]} 6. a3 {[%emt 0:02:49]} a6 {[%emt 0:01:50]} 7. Bd3 {[%emt 0:00:20]} g6 {[%emt 0:04:41]} 8. e5 {[%emt 0:13:30]} dxe5 {[%emt 0:09:42]} 9. dxe5 {[%emt 0:00:39]} Nxe5 {[%emt 0:02:12]} 10. Nxe5 {[%emt 0:01:36]} Qa5+ {[%emt 0:00:36]} 11. Bd2 {[%emt 0:00:24]} Qxe5+ {[%emt 0:00:10]} 12. Be2 {[%emt 0:00:27]} Qc7 {[%emt 0:04:35]} 13. Bc3 {[%emt 0:02:07]} f6 {[%emt 0:02:33]} 14. Qd2 {[%emt 0:01:07]} Bh6 {[%emt 0:02:31]} 15. Qc2 {[%emt 0:02:04]} e5 {[%emt 0:02:54]} 16. Nd2 {[%emt 0:02:20]} Ne7 {[%emt 0:04:16]} 17. Qb3 {[%emt 0:08:06]} Kf8 {[%emt 0:07:22]} 18. Rc1 {[%emt 0:05:59]} Kg7 {[%emt 0:02:27]} 19. O-O {[%emt 0:01:14]} Nc6 {[%emt 0:00:57]} 20. Bb4 {[%emt 0:07:47]} Qd7 {[%emt 0:10:23]} 21. Rcd1 {[%emt 0:02:55]} Nd4 {[%emt 0:01:41]} 22. Qd3 {[%emt 0:00:24]} Qf5 {[%emt 0:00:37]} 23. Ne4 {[%emt 0:01:47]} Qf4 {[%emt 0:04:58]} 24. Bd2 {[%emt 0:05:13]} Qf5 {[%emt 0:01:24]} 25. Bb4 {[%emt 0:01:04]} Bd7 {[%emt 0:01:18]} 26. Nd6 {[%emt 0:06:47]} Qg5 {[%emt 0:00:35]} 27. Bd2 {[%emt 0:08:47]} Qh4 {[%emt 0:00:23]} 28. Bxh6+ {[%emt 0:00:15]} Qxh6 {[%emt 0:00:07]} 29. Bf3 {[%emt 0:00:31]} Nxf3+ {[%emt 0:00:35]} 30. Qxf3 {[%emt 0:00:12]} Bc6 {[%emt 0:00:07]} 31. Qc3 {[%emt 0:01:19]} Qg5 {[%emt 0:00:37]} 32. f3 {[%emt 0:02:45]} Rad8 {[%emt 0:00:52]} 33. Nxb7 {[%emt 0:01:31]} Rxd1 {[%emt 0:06:10]} 1/2-1/2

[Event "AUT-ch U16 Boys 2022"]
[Site "Sankt Veit an der Glan"]
[Date "2022.04.12"]
[Round "4.12"]
[White "Soldo, Dario"]
[Black "Schilcher, Elias"]
[Result "1-0"]
[ECO "A35"]
[WhiteElo "1547"]
[BlackElo "1445"]
[Annotator "NA RC"]
[PlyCount "97"]
[EventDate "2022.04.11"]
[EventType "swiss"]
[EventCountry "AUT"]
[SourceTitle "playchess.com"]
[Source "ChessBase"]
[SourceQuality "1"]
[TimeControl "5400+30"]

1. c4 {[%emt 0:00:30]} c5 {[%emt 0:00:30]} 2. Nc3 {[%emt 0:00:30]} Nc6 {[%emt 0:00:30]} 3. e3 {[%emt 0:00:30]} Nf6 {[%emt 0:00:30]} 4. d4 {[%emt 0:00:30]} cxd4 {[%emt 0:00:40]} 5. exd4 {[%emt 0:00:00]} d5 {[%emt 0:00:21]} 6. Nf3 {[%emt 0:00:00]} Bf5 {[%emt 0:01:03]} 7. cxd5 {[%emt 0:01:34]} Nxd5 {[%emt 0:00:19]} 8. Qb3 {[%emt 0:00:39]} Nxc3 {[%emt 0:02:16]} 9. bxc3 {[%emt 0:01:05]} Qd7 {[%emt 0:03:50]} 10. Bb5 {[%emt 0:03:28]} Qe6+ {[%emt 0:03:02]} 11. Qxe6 {[%emt 0:00:34]} Bxe6 {[%emt 0:00:08]} 12. O-O {[%emt 0:03:17]} a6 {[%emt 0:00:51]} 13. Ba4 {[%emt 0:01:25]} b5 {[%emt 0:02:50]} 14. Bb3 {[%emt 0:00:07]} Bf5 {[%emt 0:00:53]} 15. Ba3 e6 {[%emt 0:02:35]} 16. Bxf8 {[%emt 0:13:12]} Kxf8 {[%emt 0:03:59]} 17. Rac1 {[%emt 0:09:27]} Na5 {[%emt 0:02:28]} 18. Bc2 {[%emt 0:04:19]} Bxc2 {[%emt 0:00:55]} 19. Rxc2 {[%emt 0:00:07]} f6 {[%emt 0:00:42]} 20. Re1 {[%emt 0:01:40]} Kf7 {[%emt 0:01:02]} 21. Nd2 {[%emt 0:01:33]} Rac8 {[%emt 0:01:17]} 22. Nb3 {[%emt 0:00:28]} Nc4 {[%emt 0:03:10]} 23. Nc5 {[%emt 0:00:24]} Rc6 {[%emt 0:00:28]} 24. f4 {[%emt 0:03:21]} Rd8 {[%emt 0:01:01]} 25. Rce2 {[%emt 0:02:48]} Rdd6 {[%emt 0:08:56]} 26. a4 {[%emt 0:06:41]} bxa4 {[%emt 0:08:35]} 27. Nxa4 {[%emt 0:02:02]} Nb6 {[%emt 0:00:52]} 28. Nxb6 {[%emt 0:01:39]} Rxb6 {[%emt 0:00:08]} 29. Ra2 {[%emt 0:02:34]} Rbc6 {[%emt 0:00:38]} 30. Ra3 {[%emt 0:00:19]} Rc4 {[%emt 0:00:40]} 31. Kf2 {[%emt 0:00:40]} Rdc6 {[%emt 0:00:17]} 32. Re3 {[%emt 0:00:05]} f5 {[%emt 0:01:09]} 33. Ke2 {[%emt 0:00:11]} Kf6 {[%emt 0:01:07]} 34. Kd3 {[%emt 0:00:10]} h6 {[%emt 0:00:48]} 35. Re5 {[%emt 0:00:23]} g5 {[%emt 0:02:14]} 36. g3 {[%emt 0:00:05]} gxf4 {[%emt 0:02:35]} 37. gxf4 {[%emt 0:00:01]} Kf7 {[%emt 0:00:57]} 38. Rea5 {[%emt 0:00:09]} Kf6 {[%emt 0:00:44]} 39. Rxa6 {[%emt 0:00:21]} Rxa6 {[%emt 0:00:10]} 40. Rxa6 {[%emt 0:00:01]} Rc8 {[%emt 0:00:56]} 41. d5 {[%emt 0:00:25]} Re8 {[%emt 0:00:25]} 42. Rxe6+ {[%emt 0:00:18]} Rxe6 {[%emt 0:00:15]} 43. dxe6 {[%emt 0:00:01]} Kxe6 {[%emt 0:00:14]} 44. Kd4 {[%emt 0:00:01]} Kd6 {[%emt 0:00:36]} 45. c4 {[%emt 0:00:05]} h5 {[%emt 0:00:42]} 46. h4 {[%emt 0:00:07]} Ke6 {[%emt 0:01:24]} 47. Kc5 {[%emt 0:00:07]} Ke7 {[%emt 0:01:04]} 48. Kd5 {[%emt 0:00:07]} Kd7 {[%emt 0:00:16]} 49. Ke5 {[%emt 0:00:04]} 1-0

[Event "AUT-ch U16 Boys 2022"]
[Site "Sankt Veit an der Glan"]
[Date "2022.04.12"]
[Round "5.1"]
[White "Lerch, Johannes"]
[Black "Hofstadler, Mario"]
[Result "1/2-1/2"]
[ECO "B13"]
[WhiteElo "2229"]
[BlackElo "2090"]
[Annotator "TA"]
[PlyCount "56"]
[EventDate "2022.04.11"]
[EventType "swiss"]
[EventCountry "AUT"]
[SourceTitle "playchess.com"]
[Source "ChessBase"]
[SourceQuality "1"]
[TimeControl "5400+30"]

{[%evp 12,56,12,15,20,-84,-70,-85,-75,-82,-77,-162,-159,-179,-180,-166,-173,-168,-178,-160,-142,-186,-191,-189,-119,-140,-97,-211,-195,-188,-192,-198,-184,-183,-179,-177,-170,-183,-191,-178,-175,-208,0,-186,0,-218,0]} 1. e4 {[%emt 0:00:03]} c6 {[%emt 0:00:10]} 2. d4 {[%emt 0:00:04]} d5 {[%emt 0:00:20]} 3. exd5 {[%emt 0:00:11]} cxd5 {[%emt 0:00:14]} 4. Bd3 {[%emt 0:00:14]} Nc6 {[%emt 0:00:22]} 5. c3 {[%emt 0:00:10]} Nf6 {[%emt 0:00:10]} 6. Bf4 {[%emt 0:00:35]} Bg4 {[%emt 0:02:22]} 7. Qb3 {[%emt 0:01:04]} e5 {[%emt 0:04:35][%cal Be7e5,Be5f4][%mdl 32] [#] ...Na5 is the strong threat. B13: Caro-Kann: Exchange Variation and Panov-Botvinnik Attack.} 8. f3 $146 {[%emt 0:11:53] [#]} ({Predecessor:} 8. dxe5 Nh5 9. Be3 Nxe5 10. Bb5+ Nc6 11. h3 Be6 12. Qd1 Nf6 13. Nf3 Bd6 14. O-O O-O 15. Nbd2 {0-1 (61) Wei,Y (2743)-Navara,D (2740) Yancheng 2018}) 8... Na5 $1 {[%emt 0:20:47]} 9. Qd1 {[%emt 0:06:38]} exf4 {[%emt 0:02:13] Black is better.} 10. fxg4 {[%emt 0:00:16] [#]} Qe7+ {[%emt 0:05:47]} 11. Ne2 {[%emt 0:08:08]} (11. Kf1 $17) 11... Nxg4 $19 {[%emt 0:07:00] Threatens to win with ...Qh4+.} 12. O-O {[%emt 0:14:34]} Qe3+ {[%emt 0:03:25]} 13. Kh1 {[%emt 0:00:04]} Nf2+ {[%emt 0:01:11]} 14. Rxf2 {[%emt 0:00:04]} Qxf2 {[%emt 0:00:09]} 15. Nd2 {[%emt 0:06:52]} Bd6 {[%emt 0:05:35]} 16. Qa4+ {[%emt 0:01:16]} Nc6 {[%emt 0:00:25]} 17. Nf3 {[%emt 0:00:24]} O-O {[%emt 0:02:11]} (17... O-O-O $19 {And now ...Rhe8 would win.} 18. Rb1 Rhe8) 18. Qb5 {[%emt 0:05:15][%csl LRb7,LRd5]} Ne7 {[%emt 0:10:48]} 19. Qxb7 {[%emt 0:01:30]} (19. Neg1 $17 {might work better.} a6 20. Qb6) 19... Rab8 {[%emt 0:02:40]} 20. Qd7 {[%emt 0:03:21]} Rfd8 {[%emt 0:06:27]} ({Less strong is} 20... Rxb2 21. Qxd6 Ng6 22. Qxd5 $14) 21. Qh3 {[%emt 0:01:21]} h6 {[%emt 0:02:27]} ({Worse is} 21... Rxb2 22. Qxh7+ Kf8 23. Qh8+ Ng8 24. Bh7 $17) 22. b3 {[%emt 0:01:08]} Qe3 {[%emt 0:01:44] Inhibits Nd2.} 23. Rd1 {[%emt 0:00:47]} a5 {[%emt 0:02:03]} 24. Nc1 {[%emt 0:05:43]} Qe6 {[%emt 0:05:22]} 25. Qh5 {[%emt 0:02:47]} Qf6 {[%emt 0:02:11]} 26. Qh3 {[%emt 0:00:42]} Qe6 {[%emt 0:00:05]} 27. Qh5 $1 {[%emt 0:00:04]} Qf6 {[%emt 0:00:05]} 28. Qh3 $1 {[%emt 0:00:03]} Qe6 $2 {[%emt 0:00:04] Weighted Error Value: White=0.21 (precise) /Black=0.33} ({Black should play} 28... a4 $19 29. b4 Rb6) 1/2-1/2

[Event "AUT-ch U16 Boys 2022"]
[Site "Sankt Veit an der Glan"]
[Date "2022.04.12"]
[Round "5.2"]
[White "Borrmann, Laurenz"]
[Black "Marakovits, Nico"]
[Result "1/2-1/2"]
[ECO "B31"]
[WhiteElo "2232"]
[BlackElo "2249"]
[Annotator "TA"]
[PlyCount "167"]
[EventDate "2022.04.11"]
[EventType "swiss"]
[EventCountry "AUT"]
[SourceTitle "playchess.com"]
[Source "ChessBase"]
[SourceQuality "1"]
[TimeControl "5400+30"]

{[%evp 15,167,12,6,12,37,28,41,-19,0,-8,-4,0,7,-8,12,6,6,5,20,0,0,0,25,27,41,57,51,60,70,68,59,69,86,32,21,23,16,12,8,4,4,6,10,4,10,3,9,-7,39,-1,5,-18,0,0,0,0,0,0,0,0,0,0,8,8,33,4,25,0,10,12,6,0,18,24,41,6,18,-7,0,-17,-14,-18,-17,-17,0,0,0,0,26,29,63,0,59,0,0,0,0,0,0,0,0,0,12,12,12,12,12,12,12,1,8,8,47,47,47,47,135,135,135,135,135,135,135,135,135,135,135,135,135,135,135,135,135,135,135,94,61,135,135,135,135,137,137,137,137,8,137,47,47,8,8,8,8,8]} 1. e4 {[%emt 0:00:10]} c5 {[%emt 0:00:07]} 2. Nf3 {[%emt 0:00:08]} Nc6 {[%emt 0:00:05]} 3. Bb5 {[%emt 0:00:07]} g6 {[%emt 0:00:05]} 4. O-O {[%emt 0:00:08]} Bg7 {[%emt 0:00:04]} 5. c3 {[%emt 0:00:06]} Nf6 {[%emt 0:01:42]} 6. Re1 {[%emt 0:00:11]} O-O {[%emt 0:02:40]} 7. d4 {[%emt 0:00:11]} cxd4 {[%emt 0:00:38]} 8. cxd4 {[%emt 0:00:11]} a6 {[%emt 0:07:14]} 9. Bd3 {[%emt 0:09:36] B31: Sicilian: 2...Nc6 3 Bb5 g6.} d5 {[%emt 0:07:46]} 10. e5 {[%emt 0:00:20]} Ne4 {[%emt 0:01:51] [#]} 11. Bxe4 $146 {[%emt 0:25:35]} (11. h3 $14) ({Predecessor:} 11. h3 Nb4 12. Bf1 Qc7 13. Na3 Bd7 14. Bd2 Nxd2 15. Qxd2 Qb6 16. Nb1 Bf5 17. Rc1 {0-1 (38) Bivol,A (2370)-Khanin,S (2506) Cheliabinsk 2021}) 11... dxe4 $11 {[%emt 0:00:46]} 12. Rxe4 {[%emt 0:00:08]} Bf5 {[%emt 0:00:47]} 13. Re1 {[%emt 0:00:41]} Nb4 {[%emt 0:02:39] Strongly threatening ...Nc2.} 14. Nh4 {[%emt 0:12:10]} Bc2 {[%emt 0:18:10]} 15. Qd2 {[%emt 0:07:34]} Nd3 {[%emt 0:01:57]} 16. Re4 {[%emt 0:03:23]} Nb4 {[%emt 0:12:48]} 17. Re1 {[%emt 0:07:47]} Nd3 {[%emt 0:04:10]} 18. Re4 {[%emt 0:00:07]} Nb4 {[%emt 0:09:52]} 19. Re3 {[%emt 0:13:53]} Bxb1 {[%emt 0:06:01]} 20. Qxb4 {[%emt 0:00:37]} Bc2 {[%emt 0:00:46]} 21. Bd2 {[%emt 0:03:16]} a5 {[%emt 0:03:31]} 22. Qxb7 {[%emt 0:01:09]} Qxd4 {[%emt 0:02:51]} 23. Nf3 {[%emt 0:00:30]} Qd8 {[%emt 0:01:02]} 24. Rc3 {[%emt 0:02:04] 0x0.00018dd7ffe2dp-1022s more active pieces.} (24. Bc3 $16) 24... Bf5 {[%emt 0:04:06]} 25. Bg5 {[%emt 0:00:48]} Re8 {[%emt 0:01:07]} 26. b3 {[%emt 0:01:02]} h6 {[%emt 0:00:32]} 27. Be3 {[%emt 0:00:46]} a4 {[%emt 0:03:12]} 28. Rac1 {[%emt 0:00:43]} axb3 {[%emt 0:00:45]} 29. axb3 {[%emt 0:00:03]} Rb8 {[%emt 0:00:28]} 30. Qa6 {[%emt 0:02:46]} Qd5 {[%emt 0:01:34][%csl LRb3,LRe5]} 31. Qa3 {[%emt 0:00:17]} Be6 {[%emt 0:00:37]} (31... Be4 $11) 32. Rb1 {[%emt 0:01:03]} g5 {[%emt 0:00:53][%cal Bg6g5,Bg5g4][%mdl 32]} 33. Qc5 {[%emt 0:03:30]} Qe4 {[%emt 0:01:22]} 34. Re1 {[%emt 0:00:27][%cal Oe3g5]} Rec8 {[%emt 0:01:25]} (34... Rxb3 35. Rxb3 Bxb3 36. Bxg5 $1 $16) 35. Qd4 {[%emt 0:00:11]} Qb7 {[%emt 0:01:25]} 36. Rxc8+ {[%emt 0:00:29]} Rxc8 {[%emt 0:00:28]} 37. h4 {[%emt 0:01:01]} g4 38. Nd2 {[%emt 0:00:21]} Qb5 {[%emt 0:01:34]} 39. Bf4 {[%emt 0:00:32]} Rb8 {[%emt 0:02:10]} 40. Qe3 {[%emt 0:02:00]} Kh7 {[%emt 0:00:31]} 41. Qg3 {[%emt 0:00:40]} Qa5 {[%emt 0:00:36]} 42. Qd3+ {[%emt 0:00:38]} Kg8 {[%emt 0:00:08][%cal Ob8b3]} 43. Kh2 {[%emt 0:00:46]} Rd8 {[%emt 0:00:20]} 44. Qe3 {[%emt 0:00:28]} Kh7 {[%emt 0:00:23]} 45. Qe4+ {[%emt 0:01:16]} Kg8 {[%emt 0:00:03]} 46. Re2 {[%emt 0:00:28]} Qb5 {[%emt 0:00:30]} 47. f3 {[%emt 0:00:39] [#]} Bf5 $1 {[%emt 0:01:31][%mdl 1024] Black has compensation.} 48. Qe3 {[%emt 0:00:26]} (48. Qc4 Qb6) 48... Rd3 {[%emt 0:00:41]} 49. Qf2 {[%emt 0:00:10]} Rd5 {[%emt 0:00:31]} 50. Nc4 {[%emt 0:01:08]} Bd3 {[%emt 0:00:26]} ({But not} 50... Qxb3 51. Ne3 Rd4 52. Nxf5 $16) 51. Rd2 {[%emt 0:00:44]} Qxb3 {[%emt 0:00:30]} 52. Ne3 {[%emt 0:00:17][%cal Bc4e3,Be3g2,Bg2e1,Be1c2][%mdl 32]} Rd4 {[%emt 0:00:37]} 53. fxg4 {[%emt 0:01:32]} ({White should play} 53. Bg3 $1 $14) 53... Qa4 {[%emt 0:00:21]} (53... Qe6 $11 54. g3 (54. Nf5 $2 Rxf4 55. Nxg7 Rxf2 $19) 54... Rd7) 54. g3 {[%emt 0:00:22]} (54. Bg3 $14 Rd7 55. Nf5 Qxg4 {[#]} 56. Nxe7+ $1 {[%mdl 512]} Kh7 57. Nc8 (57. Qxf7 Bc4 $11)) 54... Be4 {[%emt 0:00:29]} 55. Ng2 {[%emt 0:00:46]} Rxd2 {[%emt 0:00:13]} 56. Qxd2 {[%emt 0:00:01]} Kh7 {[%emt 0:00:30]} 57. Qe2 {[%emt 0:00:10]} e6 {[%emt 0:00:34]} 58. Ne1 {[%emt 0:01:16]} Bd5 {[%emt 0:00:40] A strong pair of Bishops.} 59. Qc2+ {[%emt 0:00:13]} Qxc2+ 60. Nxc2 {[%emt 0:00:01][%mdl 4096] Endgame KBB-KBN} f6 {[%emt 0:00:47]} 61. exf6 {[%emt 0:00:39]} Bxf6 {[%emt 0:00:03]} 62. Ne3 {[%emt 0:01:06]} Be4 {[%emt 0:00:17]} 63. Nc4 {[%emt 0:00:20]} Bd5 {[%emt 0:00:19]} (63... Bd3 $5 {[%cal Rd3c4]} 64. Nd6 Be2 $11) 64. Ne5 {[%emt 0:00:23]} Bxe5 {[%emt 0:00:29]} 65. Bxe5 $14 {[%emt 0:00:05] KB-KB} Bf3 {[%emt 0:00:04]} (65... Bc4 $1 $14) 66. Kh3 $16 {[%emt 0:00:15]} Bd1 {[%emt 0:00:16]} 67. h5 {[%emt 0:00:14]} Be2 {[%emt 0:00:09]} 68. Kh4 {[%emt 0:00:13]} Bd1 {[%emt 0:00:03]} 69. g5 {[%emt 0:00:20]} hxg5+ {[%emt 0:00:17]} 70. Kxg5 {[%emt 0:00:03]} Be2 {[%emt 0:00:06]} 71. g4 {[%emt 0:00:14][%cal Bg3g4,Bg4g5][%mdl 32]} Bd1 {[%emt 0:00:03]} 72. Kh4 {[%emt 0:00:06]} Be2 {[%emt 0:00:58]} 73. g5 {[%emt 0:00:46] g6+ would kill now.} Bd3 {[%emt 0:00:54]} 74. Bd6 {[%emt 0:01:00]} Kg7 {[%emt 0:01:12]} 75. Be7 {[%emt 0:00:23]} Kf7 {[%emt 0:00:16]} 76. Bf6 {[%emt 0:00:10]} (76. Bd8 $14) 76... Bb1 {[%emt 0:00:18]} 77. Be5 {[%emt 0:01:13]} Bc2 {[%emt 0:00:08]} 78. Kg3 {[%emt 0:00:07]} Bb1 {[%emt 0:00:10]} 79. Kf4 {[%emt 0:00:21]} Bc2 {[%emt 0:00:07]} 80. Bf6 {[%emt 0:00:29]} (80. Bd6 $16) 80... Bb1 {[%emt 0:00:09]} (80... Bd1 $11 {remains equal.}) 81. Ke5 {[%emt 0:00:04]} (81. Bb2 $16) 81... Bc2 $14 {[%emt 0:00:07]} 82. g6+ {[%emt 0:01:54]} Bxg6 $1 {[%emt 0:00:06]} 83. hxg6+ {[%emt 0:00:02]} Kxg6 {[%emt 0:00:06]} 84. Kxe6 {Weighted Error Value: White=0.12 (very precise) /Black=0.08 (flawless)} 1/2-1/2

[Event "AUT-ch U16 Boys 2022"]
[Site "Sankt Veit an der Glan"]
[Date "2022.04.12"]
[Round "5.3"]
[White "Wendl, Philipp"]
[Black "Gschiel, Alexander"]
[Result "1-0"]
[ECO "B52"]
[WhiteElo "2000"]
[BlackElo "2109"]
[Annotator "TA"]
[PlyCount "69"]
[EventDate "2022.04.11"]
[EventType "swiss"]
[EventCountry "AUT"]
[SourceTitle "playchess.com"]
[Source "ChessBase"]
[SourceQuality "1"]
[TimeControl "5400+30"]

{[%evp 9,69,8,25,28,35,29,28,27,29,32,51,48,66,58,68,72,103,73,104,84,233,214,219,206,216,154,129,10,200,114,111,117,116,114,152,144,235,243,329,312,314,245,393,338,714,717,646,377,462,335,658,550,1115,1022,29988,29989,29989,29990,29992,29993,29995,29992]} 1. e4 {[%emt 0:00:02]} c5 {[%emt 0:00:06]} 2. Nf3 {[%emt 0:00:34]} d6 {[%emt 0:00:07]} 3. Bb5+ {[%emt 0:00:50]} Bd7 {[%emt 0:01:54]} 4. Bxd7+ {[%emt 0:03:24]} Qxd7 {[%emt 0:02:45]} 5. c4 {[%emt 0:01:05]} g6 {[%emt 0:03:04]} 6. d4 {[%emt 0:05:39] B52: Sicilian: Moscow Variation with 3...Bd7.} cxd4 {[%emt 0:01:06]} 7. Nxd4 {[%emt 0:00:53]} Bg7 {[%emt 0:01:51]} 8. Be3 {[%emt 0:02:10] White has an edge.} Nc6 {[%emt 0:01:45]} 9. Nc3 {[%emt 0:04:09]} Ne5 {[%emt 0:11:25]} 10. b3 {[%emt 0:14:52]} Ng4 {[%emt 0:14:08]} 11. Bg5 {[%emt 0:10:22]} h6 {[%emt 0:10:27] [#]} 12. Bc1 $146 {[%emt 0:02:17]} ({Predecessor:} 12. Bh4 a6 13. a4 N8f6 14. f3 Nxe4 15. Nd5 O-O 16. fxe4 g5 17. Bg3 f5 18. exf5 Bxd4 19. Qxd4 Rxf5 20. O-O-O {1-0 (20) Kenning,P (1867)-Clancy,M (1802) Torquay 2019}) 12... Qd8 {[%emt 0:04:41][%cal Od8b6]} 13. O-O {[%emt 0:09:56]} (13. Qxg4 Bxd4 14. Qf3 Nf6 $14) 13... Qa5 {[%emt 0:10:31]} 14. Bb2 {[%emt 0:09:57]} (14. Qxg4 Bxd4 15. b4 Qxb4 $17) 14... Nxh2 {[%emt 0:04:45]} 15. Kxh2 $18 {[%emt 0:01:28]} Qe5+ {[%emt 0:00:09]} 16. f4 {[%emt 0:02:04]} Qxd4 {[%emt 0:00:19]} 17. Qe2 {[%emt 0:00:53]} Qf6 {[%emt 0:07:06] [#]} 18. e5 {[%emt 0:05:28]} (18. Kg1 $1 $16 {Na4 is the strong threat.} Kf8 19. e5) 18... Qh4+ {[%emt 0:04:34]} (18... dxe5 $11 19. Nd5 Qh4+ 20. Kg1 Nf6) 19. Kg1 $16 {[%emt 0:00:08]} h5 {[%emt 0:02:09]} 20. Rad1 $36 {[%emt 0:10:42][%mdl 2048] White is on the roll.} Nh6 {[%emt 0:02:54]} 21. exd6 {[%emt 0:01:17]} O-O {[%emt 0:06:29] Strongly threatening ...Bxc3.} 22. Qxe7 {[%emt 0:04:57] 0x0.002037565f53dp-1022s more active pieces.} ({Stronger than} 22. dxe7 Ng4 23. g3 (23. exf8=R+ {gets mated.} Bxf8 24. g3 Qxg3+ 25. Qg2 Bc5+) 23... Qxg3+ 24. Kh1 Qh3+ 25. Kg1 Qg3+ 26. Kh1 Qh4+ 27. Kg1 Rfe8 $11) 22... Bf6 {[%emt 0:02:04]} (22... Qxe7 $16 {was necessary.} 23. dxe7 Rfe8) 23. Qe1 $18 {[%emt 0:00:12][%cal Oc3d5] And now Nd5! would win.} Qg4 {[%emt 0:00:25]} 24. Qf2 {[%emt 0:03:07]} Bh4 {[%emt 0:04:15]} 25. Qf3 {[%emt 0:00:40]} Qd7 {[%emt 0:01:48]} (25... Qxf3 $142 26. Rxf3 Rfe8) 26. Ne4 {[%emt 0:01:13] Black must now prevent Bf6.} Ng4 {[%emt 0:00:23] Against Bf6} (26... Bd8 27. Rfe1 Kh7) 27. g3 {[%emt 0:01:12]} Bd8 {[%emt 0:00:03]} 28. Rfe1 {[%emt 0:00:33]} Rc8 {[%emt 0:01:05]} 29. Re2 {[%emt 0:01:22]} ({Less strong is} 29. Qc3 f6 30. Qd4 Re8 $18) 29... f5 $2 {[%emt 0:00:20]} (29... f6 30. c5 Kh7) 30. Ng5 {[%emt 0:00:50]} Bxg5 {[%emt 0:00:19]} 31. fxg5 {[%emt 0:00:05] Threatening mate with Re7.} Rfe8 {[%emt 0:00:22] Prevents Re7.} 32. Qd5+ {[%emt 0:01:13] White mates.} Kh7 {[%emt 0:00:12]} 33. Rde1 {[%emt 0:00:37]} Rxe2 34. Rxe2 {[%emt 0:00:01]} Re8 {[%emt 0:02:15] [#]} 35. Qd4 $1 {[%emt 0:00:32][%mdl 512] Weighted Error Value: White=0.32/Black=0.68} 1-0